bitfinex/quotes_ETHUSD_20220212
["timestamp","ask_amount","ask_price","bid_price","bid_amount"]
[1644697881971,1.59232407,2987.2,2986.9,7.685e-05]
[1644697882170,1.59232407,2987.2,2985.7,0.25]
[1644697882171,0.00072315,2986.7,2985.7,0.25]
[1644697882370,0.00072315,2986.7,2985.0,0.1673]
[1644697882371,5.0,2986.4,2985.0,0.1673]
[1644697882570,5.0,2986.4,2984.8,0.25]
[1644697882571,1.9129932,2986.3,2984.8,0.25]
[1644697882769,1.9129932,2986.3,2984.9,0.1673]
[1644697882770,1.42502407,2986.2,2984.9,0.1673]
[1644697882971,1.35311536,2984.6,2984.4,3.5]
[1644697883171,1.35311536,2984.6,2984.2,5.17471]
[1644697883370,1.35608449,2984.6,2984.2,24.92471]
[1644697883573,1.35311536,2984.6,2984.4,0.83738]
[1644697884426,1.35311536,2984.6,2984.5,3.15549327]
[1644697885224,1.35311536,2984.6,2984.4,0.83738]
[1644697885225,1.35311536,2984.6,2984.4,0.84368839]
[1644697886031,1.35311536,2984.6,2984.4,0.00630839]
[1644697886232,1.35311536,2984.6,2983.9,0.04999999]
[1644697886432,1.35608449,2984.6,2983.9,0.04999999]
[1644697886632,1.35608449,2984.6,2984.4,0.00988213]
[1644697886831,1.35311536,2984.6,2984.4,0.00988213]
[1644697887431,1.35311536,2984.6,2983.9,0.04999999]
[1644697887659,1.35608449,2984.6,2984.4,0.00988213]
[1644697887860,1.35311536,2984.6,2984.4,0.00988213]
[1644697888260,1.42573886,2984.5,2984.4,0.00988213]
[1644697888662,4.92573886,2984.5,2983.2,4.30054778]
[1644697888863,2.22025836,2984.4,2984.3,0.00988223]
[1644697889062,2.22025836,2984.4,2984.3,8.223e-05]
[1644697889063,7.70525836,2984.4,2984.3,8.223e-05]
[1644697889364,7.84345833,2984.4,2984.3,8.223e-05]
[1644697889563,10.71643883,2984.4,2984.3,8.223e-05]
[1644697889762,8.00715319,2984.4,2984.3,8.223e-05]
[1644697889962,8.00715319,2984.4,2982.8,0.25]
[1644697890164,0.83808,2983.9,2982.8,0.25]
[1644697890464,0.83808,2983.9,2982.1,0.4175]
[1644697890465,5.57823886,2983.8,2982.1,0.4175]
[1644697890672,5.0,2983.1,2982.1,0.1675]
[1644697890864,7.48273886,2983.7,2982.1,0.1675]
[1644697890865,2.07833886,2983.0,2982.1,0.1675]
[1644697891068,1.91073886,2982.9,2982.1,0.1675]
[1644697891321,1.91073886,2982.9,2980.9,0.1676]
[1644697891322,0.7207234,2982.3,2980.9,0.1676]
[1644697891527,0.485,2982.4,2980.9,0.1676]
[1644697891725,0.485,2982.4,2980.8,19.9176]
[1644697891931,3.2771,2983.6,2981.4,5.0]
[1644697892128,3.2771,2983.6,2981.5,24.24093]
[1644697892129,1.42641909,2983.5,2981.5,24.24093]
[1644697892325,1.42641909,2983.5,2981.6,0.0127676]
[1644697892526,1.42641909,2983.5,2981.9,19.75]
[1644697892725,1.42641909,2983.5,2981.7,5.6526]
[1644697892726,1.42641909,2983.7,2982.1,19.75]
[1644697892925,1.42641909,2983.7,2982.2,4.985]
[1644697893126,1.42641909,2983.7,2982.3,0.1676]
[1644697893424,1.42641909,2983.7,2982.4,19.75]
[1644697893625,1.2071,2984.2,2982.6,19.75]
[1644697893826,0.00296913,2984.3,2982.9,0.0098853]
[1644697893827,1.42611666,2984.1,2982.9,0.0098853]
[1644697894025,0.00296913,2984.3,2983.0,0.485]
[1644697894225,1.42899255,2984.3,2983.1,4.0260574]
[1644697894624,1.42899255,2984.3,2983.1,4.3260574]
[1644697894827,0.00296913,2984.3,2983.1,4.3260574]
[1644697895073,0.00296913,2984.3,2983.6,0.00630278]
[1644697895263,0.00359987,2984.3,2983.6,0.00630278]
[1644697895566,0.744648,2984.0,2983.6,0.00630278]
[1644697895764,1.59342664,2983.9,2983.6,0.00630278]
[1644697895964,1.42592664,2983.8,2983.2,0.1675]
[1644697896165,1.42592664,2983.8,2983.7,0.00987845]
[1644697896770,0.1675,2983.9,2983.7,0.00987845]
[1644697897168,0.1675,2983.9,2983.2,0.1675]
[1644697897471,0.1675,2983.9,2983.7,0.00987845]
[1644697898367,0.1675,2983.9,2983.6,0.1675]
[1644697898568,0.1675,2983.9,2983.7,0.00987845]
[1644697899607,0.1675,2983.9,2983.6,0.1675]
[1644697899808,0.1675,2983.9,2983.7,0.00630257]
[1644697900213,0.17109987,2984.5,2983.7,0.00630257]
[1644697900412,0.00359987,2984.5,2983.7,0.00630257]
[1644697900611,2.54921523,2984.6,2983.7,0.00630257]
[1644697900813,2.54921523,2984.6,2983.5,0.83765]
[1644697901015,2.54921523,2984.6,2984.0,0.00987267]
[1644697901215,0.7198194,2984.4,2984.0,0.00987267]
[1644697901817,3.62655709,2984.3,2984.0,7.267e-05]
[1644697902115,3.62655709,2984.3,2982.6,0.1675]
[1644697902116,0.1675,2984.2,2982.6,0.1675]
[1644697902314,0.1675,2984.2,2982.3,3.8179]
[1644697902315,0.1675,2984.2,2984.1,0.00987246]
[1644697902575,3.88783678,2984.2,2984.1,0.00987246]
[1644697903164,0.66464371,2983.6,2983.1,0.25]
[1644697903366,0.66464371,2983.6,2982.4,0.1675]
[1644697903966,0.01974491,2983.8,2982.6,0.83791]
[1644697904165,0.01974491,2983.8,2982.7,0.1675]
[1644697905069,0.71662535,2983.7,2982.7,0.1675]
[1644697905267,0.71662535,2983.7,2982.4,0.1676]
[1644697905467,3.782356,2983.6,2982.4,0.1676]
[1644697905867,0.71662535,2983.7,2982.9,0.00987488]
[1644697906714,0.71662535,2983.7,2982.5,0.83793]
[1644697907214,0.71662535,2983.7,2983.2,0.00987435]
[1644697907717,0.18734491,2983.8,2983.2,0.00987435]
[1644697907914,4.33524222,2983.8,2982.5,0.83793]
[1644697908115,0.50474491,2983.8,2982.5,0.83793]
[1644697908315,0.50474491,2983.8,2983.3,0.00987404]
[1644697908915,0.01974491,2983.8,2983.3,0.00987404]
[1644697909118,0.01974491,2983.8,2982.5,0.83793]
[1644697909318,0.01974491,2983.8,2982.6,0.1676]
[1644697909516,0.01974491,2983.8,2983.4,0.00987383]
[1644697910364,0.01974491,2983.8,2982.6,0.1676]
[1644697910563,0.01974491,2983.8,2983.5,0.00987372]
[1644697911566,0.01974491,2983.8,2982.6,0.1676]
[1644697911768,0.01974491,2983.8,2983.5,0.00987362]
[1644697912767,0.01974491,2983.8,2982.6,0.1676]
[1644697912970,3.62224325,2983.8,2983.5,0.00987362]
[1644697913167,0.01974491,2983.8,2983.5,0.00987362]
[1644697914014,0.01974491,2983.8,2982.6,0.1676]
[1644697914214,0.01974491,2983.8,2983.5,0.00987362]
[1644697915114,0.01974491,2983.8,2982.6,0.1676]
[1644697915518,0.01974491,2983.8,2983.5,0.00987362]
[1644697916419,0.01974491,2983.8,2983.0,0.485]
[1644697916620,0.01974491,2983.8,2983.5,0.00987362]
[1644697917665,0.01974491,2983.8,2983.6,1.00513]
[1644697917865,0.01974491,2983.8,2983.7,3.95845167]
[1644697918268,0.01974491,2983.8,2983.5,0.00932755]
[1644697918468,0.01974491,2983.8,2983.7,0.1675]
[1644697918669,0.01974491,2983.8,2983.5,0.00932755]
[1644697918670,0.01974491,2983.8,2983.6,0.1675]
[1644697919168,0.01974491,2983.8,2983.6,0.00932734]
[1644697919370,0.01974491,2983.8,2983.7,0.1675]
[1644697919570,0.01974491,2983.8,2983.6,0.00932734]
[1644697920169,0.01974491,2983.8,2982.9,0.485]
[1644697920170,0.01974491,2983.8,2982.9,0.785]
[1644697920369,0.01974491,2983.8,2983.6,0.00932744]
[1644697920575,0.01974491,2983.8,2983.0,3.170676]
[1644697920768,0.01974491,2983.8,2982.9,1.08164281]
[1644697920970,0.01974491,2983.8,2983.0,3.17354659]
[1644697921172,0.01974491,2983.8,2983.0,3.16378281]
[1644697921422,0.01974491,2983.8,2982.9,0.485]
[1644697921618,0.01974491,2983.8,2982.7,3.74453428]
[1644697921619,0.01974491,2983.8,2982.7,3.72461277]
[1644697922419,0.01974491,2983.8,2982.7,4.02461277]
[1644697922620,0.00311087,2983.4,2982.7,4.02461277]
[1644697923021,0.00311087,2983.4,2982.7,0.6]
[1644697923223,0.00311087,2983.4,2982.6,2.27567]
[1644697923423,0.00311087,2983.4,2982.9,0.83783]
[1644697923621,0.01974491,2983.8,2982.9,1.43783]
[1644697924021,0.00311077,2983.2,2982.9,1.13783]
[1644697924221,0.00311077,2983.2,2982.9,0.83783]
[1644697924622,0.00311077,2983.2,2983.0,0.1676]
[1644697924824,0.01974491,2983.8,2983.0,0.1676]
[1644697925063,0.00936449,2983.2,2983.0,0.1676]
[1644697926059,0.01974491,2983.8,2983.0,0.1676]
[1644697926262,0.00955357,2983.2,2983.0,0.17715452]
[1644697927266,0.01974491,2983.8,2982.3,1.08802]
[1644697927468,0.00955357,2983.2,2983.0,0.00955452]
[1644697928567,0.69986859,2983.7,2982.3,1.08802]
[1644697928813,0.00955357,2983.2,2983.0,0.00955452]
[1644697929612,0.69986859,2983.7,2982.3,1.08802]
[1644697929812,0.69986859,2983.7,2982.3,1.38802]
[1644697930013,0.69986859,2983.7,2983.0,0.00933182]
[1644697930014,0.00933089,2983.2,2983.0,0.00933182]
[1644697930218,0.00933089,2983.2,2983.0,0.00549408]
[1644697930820,0.62780099,2983.1,2983.0,0.00549408]
[1644697931023,0.65461461,2982.6,2981.7,0.1676]
[1644697932124,1.1343,2983.3,2981.7,0.1676]
[1644697932325,4.92636169,2983.2,2981.7,0.1676]
[1644697932565,1.42640862,2983.1,2981.7,0.1676]
[1644697932959,3.78881118,2983.2,2981.7,0.1676]
[1644697932960,0.65838128,2982.8,2981.7,0.1676]
[1644697933159,3.83142527,2983.2,2981.6,0.4676]
[1644697933359,3.83142527,2983.2,2981.7,1.67621]
[1644697933360,3.656151,2983.2,2981.7,1.67621]
[1644697933563,3.656151,2983.2,2982.1,0.00988128]
[1644697933564,1.42639193,2983.1,2982.1,0.00988128]
[1644697934365,0.71101469,2983.0,2982.1,0.00988128]
[1644697934565,0.71101469,2983.0,2982.0,0.83809]
[1644697934964,0.71101469,2983.0,2982.5,0.00988055]
[1644697935664,0.71101469,2983.0,2981.8,0.1676]
[1644697935865,0.71101469,2983.0,2982.6,0.00988023]
[1644697936919,0.71101469,2983.0,2981.8,0.1676]
[1644697937119,3.55849088,2982.9,2982.7,0.00988013]
[1644697937318,3.58166666,2982.9,2982.7,0.00988013]
[1644697937521,3.58963129,2982.8,2982.7,0.00988013]
[1644697937921,0.71101469,2983.0,2981.7,0.25]
[1644697937922,6.9176,2982.7,2981.7,0.25]
[1644697938121,6.9176,2982.7,2980.8,0.1676]
[1644697938122,6.91159736,2982.6,2980.8,0.1676]
[1644697938320,5.0942229,2982.5,2980.8,0.1676]
[1644697938520,5.0942229,2982.5,2982.2,0.03952687]
[1644697938521,0.6526,2982.5,2982.2,0.03952687]
[1644697938724,1.1876,2982.4,2982.2,0.03952687]
[1644697938921,0.92291781,2982.3,2982.2,0.03952687]
[1644697939120,0.1676,2982.3,2982.2,0.03952687]
[1644697939321,0.1676,2982.3,2981.3,0.25]
[1644697939519,1.1876,2982.4,2981.0,1.00598]
[1644697939520,1.3552,2982.4,2981.0,1.00598]
[1644697939722,1.1876,2982.4,2981.0,1.00598]
[1644697940372,0.79922333,2982.2,2981.0,1.00598]
[1644697940569,1.1876,2982.4,2981.0,2.60598]
[1644697940772,1.1876,2982.4,2981.4,0.83819]
[1644697940972,1.1876,2982.4,2981.5,0.1676]
[1644697941570,1.99999171,2982.4,2981.5,0.1676]
[1644697941871,0.00988009,2982.3,2981.8,0.00988191]
[1644697942871,0.82378015,2981.9,2981.1,0.1676]
[1644697943271,0.82378015,2981.9,2981.3,0.03953469]
[1644697944018,0.00988021,2982.3,2981.3,0.03953469]
[1644697944215,0.1676,2982.3,2981.1,0.1676]
[1644697944415,0.17747966,2982.3,2981.5,0.00988264]
[1644697945116,0.64820506,2982.2,2981.5,0.00988264]
[1644697945315,0.64820506,2982.2,2981.1,1.00595]
[1644697945514,0.64820506,2982.2,2981.8,0.00988201]
[1644697945716,0.00988003,2982.3,2981.8,0.00988201]
[1644697946518,1.1876,2982.4,2981.2,3.2599892]
[1644697946719,0.81890154,2982.3,2981.9,0.0098817]
[1644697947762,0.80902133,2982.3,2981.4,0.1676]
[1644697947962,0.8189016,2982.3,2982.0,0.00988159]
[1644697948768,0.00988027,2982.3,2982.0,0.00988159]
[1644697948968,1.1876,2982.4,2981.4,1.00588]
[1644697949170,1.1876,2982.4,2982.0,0.00969746]
[1644697949171,0.00969633,2982.3,2982.0,0.00969746]
[1644697949369,1.14133633,2982.4,2982.0,0.00969746]
[1644697950168,1.14133633,2982.4,2981.5,3.13353804]
[1644697951417,1.14133633,2982.4,2981.5,3.15425777]
[1644697951617,1.14133633,2982.4,2981.5,3.20431034]
[1644697951822,1.14133633,2982.4,2981.5,3.19542692]
[1644697952221,1.14133633,2982.4,2981.5,3.18969143]
[1644697952821,1.14500067,2982.4,2981.5,3.10610681]
[1644697953021,1.14500067,2982.4,2981.5,3.1391481]
[1644697953221,1.14500067,2982.4,2981.6,0.1676]
[1644697953422,1.14500067,2982.4,2981.1,4.07113279]
[1644697953623,1.14133633,2982.4,2981.1,4.07113279]
[1644697954023,1.15121615,2982.4,2981.9,0.0098818]
[1644697954826,1.15121615,2982.4,2981.1,3.77113279]
[1644697954827,1.14133633,2982.4,2981.1,3.77113279]
[1644697955068,1.15121634,2982.4,2982.0,0.00988149]
[1644697956165,1.14133633,2982.4,2981.5,3.31404538]
[1644697956368,1.1512164,2982.4,2982.1,0.00988139]
[1644697957269,1.14133633,2982.4,2981.5,3.30044313]
[1644697957469,1.15121646,2982.4,2982.1,0.00988128]
[1644697958469,1.14133633,2982.4,2981.5,3.32056251]
[1644697958916,1.15121646,2982.4,2982.1,0.00988128]
[1644697959714,1.14133633,2982.4,2981.5,3.32056251]
[1644697959913,1.15121646,2982.4,2982.1,0.00988128]
[1644697960612,0.00988013,2982.4,2982.1,0.00988128]
[1644697961015,0.07936907,2982.7,2981.8,0.83817]
[1644697961214,0.07936907,2982.7,2982.1,0.00988128]
[1644697961215,0.00988013,2982.4,2982.1,0.00988128]
[1644697962020,0.79576867,2982.7,2981.6,3.59189774]
[1644697962420,0.00924292,2982.4,2982.1,0.00924401]
[1644697963063,0.00924292,2982.4,2981.6,4.15114175]
[1644697963264,0.79576867,2982.7,2981.6,4.15114175]
[1644697963463,0.07936907,2982.7,2981.6,4.15114175]
[1644697964563,0.07936907,2982.7,2981.7,0.1676]
[1644697964963,1.2347,2982.8,2981.7,0.1676]
[1644697965165,1.67656,2984.0,2981.8,1.32316]
[1644697965166,0.1676,2983.6,2981.8,1.32316]
[1644697965365,1.42633785,2983.5,2981.9,4.94012724]
[1644697965565,1.42633785,2983.5,2982.2,1.67592]
[1644697965863,0.00988563,2982.8,2982.3,3.97587719]
[1644697966333,0.00988563,2982.8,2982.3,4.81383719]
[1644697966535,0.81603832,2983.2,2982.4,0.485]
[1644697966734,0.81603832,2983.2,2982.5,3.51149376]
[1644697967133,8.2843,2983.6,2982.5,3.51149376]
[1644697967336,1.42630605,2983.5,2982.5,3.51149376]
[1644697967934,1.42630605,2983.5,2982.5,3.15938352]
[1644697968134,1.42630605,2983.5,2982.5,3.20688585]
[1644697968334,1.42630605,2983.5,2982.6,0.83795]
[1644697968535,1.42630605,2983.5,2982.4,0.485]
[1644697968735,1.42630605,2983.5,2982.5,3.13875154]
[1644697969637,1.42630605,2983.5,2982.6,0.83795]
[1644697969938,1.42630605,2983.5,2982.7,3.41702092]
[1644697970160,1.42630605,2983.5,2982.7,3.14211906]
[1644697970360,1.42630605,2983.5,2982.7,3.24678891]
[1644697970860,1.42630605,2983.5,2982.8,2.16062]
[1644697970861,0.00988479,2983.2,2982.8,2.16062]
[1644697971060,0.00988479,2983.2,2982.9,0.1676]
[1644697971261,0.00988479,2983.2,2983.0,0.485]
[1644697971663,1.1551,2983.6,2983.0,0.485]
[1644697971864,1.1551,2983.6,2983.1,0.1675]
[1644697972063,0.00988479,2983.2,2983.1,0.1675]
[1644697972264,0.00988479,2983.2,2982.9,0.1675]
[1644697972466,0.00988479,2983.2,2982.9,0.9525]
[1644697972664,0.00988479,2983.2,2982.9,0.6525]
[1644697972864,3.0816,2983.9,2982.9,0.485]
[1644697972865,0.66461435,2983.5,2982.9,0.485]
[1644697973064,1.42626113,2983.4,2982.9,0.485]
[1644697973265,0.0098849,2983.2,2982.9,0.485]
[1644697974010,1.1502,2983.8,2982.9,0.485]
[1644697974211,0.66600852,2983.6,2982.9,0.485]
[1644697974413,0.0098849,2983.2,2982.9,0.485]
[1644697974615,0.0098849,2983.2,2982.6,0.83795]
[1644697975019,0.0098849,2983.2,2982.7,3.1335921]
[1644697975416,0.66600852,2983.6,2982.7,3.1335921]
[1644697975618,0.00988521,2983.0,2982.7,3.1335921]
[1644697976119,0.00988521,2983.0,2982.6,0.83795]
[1644697976317,0.00988521,2983.0,2982.7,3.21447368]
[1644697976518,0.66600852,2983.6,2982.7,3.21447368]
[1644697976718,0.00988542,2982.9,2982.7,3.21447368]
[1644697977762,0.66600852,2983.6,2982.7,3.21447368]
[1644697977963,0.00988542,2982.9,2982.7,3.21447368]
[1644697978969,0.66600852,2983.6,2982.7,3.21447368]
[1644697979170,0.00970007,2982.9,2982.6,0.78795]
[1644697980173,0.00970007,2982.9,2982.3,3.30380215]
[1644697980369,0.00970007,2982.9,2982.4,0.1676]
[1644697980370,0.00970001,2982.9,2982.4,0.1676]
[1644697980773,0.00970001,2982.9,2982.5,0.83793]
[1644697980975,0.00970001,2982.9,2982.6,0.1676]
[1644697981171,0.00970001,2982.9,2982.3,3.30380209]
[1644697981415,0.00970001,2982.9,2982.2,1.67592]
[1644697981416,0.87404829,2983.1,2982.2,1.97592]
[1644697981614,0.00970001,2982.9,2982.3,0.00970209]
[1644697982616,0.87404829,2983.1,2982.2,0.83805]
[1644697982818,0.0092429,2982.9,2982.3,0.00924489]
[1644697983315,0.0092429,2982.9,2982.1,0.12684489]
[1644697983716,0.87404829,2983.1,2982.1,0.12684489]
[1644697983915,0.87404829,2983.1,2982.0,0.1676]
[1644697984717,1.42641086,2983.0,2982.0,0.1676]
[1644697985163,4.94681392,2983.0,2982.0,0.1676]
[1644697985366,0.87404829,2983.1,2982.0,0.1676]
[1644697985565,1.42644139,2983.0,2982.0,0.1676]
[1644697986466,0.0098859,2982.7,2982.2,0.0098877]
[1644697987268,0.87404829,2983.1,2982.0,0.1676]
[1644697987469,1.4264742,2983.0,2982.0,0.1676]
[1644697987670,0.83645231,2982.6,2982.2,0.009233]
[1644697988470,0.83645231,2982.6,2981.7,0.1676]
[1644697988811,0.83645231,2982.6,2982.2,0.00923294]
[1644697989412,0.00923127,2982.7,2982.2,0.00923294]
[1644697989713,1.2107,2982.9,2981.9,0.83815]
[1644697990113,1.2107,2982.9,2982.2,0.009233]
[1644697990114,0.00923133,2982.7,2982.2,0.009233]
[1644697990714,0.83980349,2982.4,2982.2,0.009233]
[1644697991014,1.2107,2982.9,2981.5,1.67634]
[1644697991214,0.00923133,2982.7,2982.2,0.009233]
[1644697992315,0.88011498,2982.6,2982.2,0.00927711]
[1644697993366,1.2107,2982.9,2981.9,0.83813]
[1644697993567,0.00927536,2982.7,2982.2,0.00927705]
[1644697994565,1.2107,2982.9,2982.0,1.67606]
[1644697994967,0.00917135,2982.7,2982.2,0.00917301]
[1644697995368,0.00917135,2982.7,2982.3,0.6526]
[1644697995769,5.2531,2983.8,2982.3,0.9526]
[1644697995966,0.00917193,2982.7,2982.3,5.04783707]
[1644697996166,0.00917193,2982.7,2982.3,0.9526]
[1644697996616,0.00917193,2982.7,2982.6,0.83794]
[1644697997020,0.74577184,2983.3,2982.6,0.83794]
[1644697997219,0.00917178,2982.8,2982.6,0.83794]
[1644697998221,1.3415,2983.8,2982.6,0.83794]
[1644697998222,0.6352054,2983.6,2982.6,0.83794]
[1644697998424,0.00927577,2982.8,2982.6,0.83794]
[1644697999019,0.00927577,2982.8,2982.5,0.485]
[1644697999521,0.6352054,2983.6,2982.5,0.485]
[1644697999719,0.00927587,2982.8,2982.5,0.485]
[1644698000562,0.6352054,2983.6,2982.5,0.485]
[1644698000967,0.0092723,2982.8,2982.5,0.485]
[1644698001771,0.6352054,2983.6,2982.5,0.483179]
[1644698001970,0.0092723,2982.8,2982.5,0.483179]
[1644698002772,0.0092723,2982.8,2982.3,1.30562]
[1644698002972,3.64058171,2983.7,2982.3,1.30562]
[1644698003172,0.00367062,2982.8,2982.3,1.30562]
[1644698004010,0.8233531,2983.4,2982.4,3.36118739]
[1644698004212,1.42627809,2983.3,2982.5,0.1676]
[1644698004815,0.1,2982.9,2981.9,0.1676]
[1644698005013,0.1,2982.9,2981.8,0.1676]
[1644698005014,1.42627809,2982.8,2981.8,0.1676]
[1644698005218,1.42627809,2982.8,2981.5,6.68519905]
[1644698005414,1.42627809,2982.8,2981.5,3.4765]
[1644698005614,1.42627809,2982.8,2981.6,3.06686046]
[1644698005815,1.42627809,2982.8,2981.7,0.1676]
[1644698007216,0.70402338,2982.5,2981.7,0.1676]
[1644698008062,0.70402338,2982.5,2982.0,0.00989454]
[1644698009062,0.70402338,2982.5,2981.4,0.25]
[1644698009063,1.42665951,2982.4,2981.4,0.25]
[1644698009263,1.42665951,2982.4,2982.1,0.00989423]
[1644698010268,1.42665951,2982.4,2981.3,3.19663578]
[1644698010464,1.42665951,2982.4,2982.1,0.00989423]
[1644698011515,1.42665951,2982.4,2981.3,3.20928519]
[1644698011712,1.42665951,2982.4,2982.1,0.00989423]
[1644698013817,1.42665951,2982.4,2981.3,0.17080071]
[1644698014217,1.42665951,2982.4,2982.1,0.00989423]
[1644698015070,1.42665951,2982.4,2981.3,3.34600466]
[1644698015259,1.42665951,2982.4,2982.1,0.00989423]
[1644698015664,0.70402338,2982.5,2982.1,0.00989423]
[1644698016267,0.70402338,2982.5,2981.3,3.37328975]
[1644698016468,1.42670316,2982.4,2982.2,0.00989413]
[1644698016670,0.70402338,2982.5,2982.2,0.00989413]
[1644698017470,0.70402338,2982.5,2981.3,0.17080071]
[1644698017770,0.70402338,2982.5,2982.2,0.00989402]
[1644698017970,1.42672964,2982.4,2982.2,0.00989402]
[1644698018172,0.70402338,2982.5,2982.2,0.00989402]
[1644698018371,1.42672912,2982.4,2982.2,0.00989402]
[1644698018571,0.70402338,2982.5,2982.2,0.00989402]
[1644698018811,0.70402338,2982.5,2981.3,0.17080071]
[1644698019010,1.42671395,2982.4,2982.2,0.00989402]
[1644698019213,0.70402338,2982.5,2982.2,0.00989402]
[1644698019815,0.70402338,2982.5,2981.5,0.00320071]
[1644698020215,0.70402338,2982.5,2982.2,0.00989402]
[1644698020814,0.1676,2982.7,2982.2,0.00989402]
[1644698021015,1.42667682,2982.6,2981.5,0.00320071]
[1644698021418,1.42667682,2982.6,2982.2,0.00989402]
[1644698022220,1.42667682,2982.6,2981.6,0.00320071]
[1644698022419,0.64767952,2982.5,2981.6,0.00320071]
[1644698022661,0.64767952,2982.5,2982.3,0.00989392]
[1644698023568,0.64767952,2982.5,2981.6,0.00352526]
[1644698023768,0.64767952,2982.5,2982.3,0.00989392]
[1644698024172,1.42674274,2982.4,2982.3,0.00989392]
[1644698024372,0.01978784,2982.2,2981.6,0.03958381]
[1644698024569,1.91174274,2982.1,2981.6,0.03958381]
[1644698024767,1.91174274,2982.1,2981.3,0.00352526]
[1644698024768,1.59434274,2982.0,2981.3,0.00352526]
[1644698024968,0.6526,2982.1,2981.3,0.00352526]
[1644698025170,1.42687054,2982.0,2981.3,0.00352526]
[1644698025368,1.42687054,2982.0,2980.8,3.6676]
[1644698025369,0.66159474,2981.8,2980.9,0.00352526]
[1644698027422,0.66159474,2981.8,2981.2,0.00623455]
[1644698028318,0.66159474,2981.8,2980.9,0.00352526]
[1644698028517,0.66159474,2981.8,2981.4,0.0098958]
[1644698029020,1.8718,2982.1,2981.4,0.0098958]
[1644698029219,1.7042,2982.1,2981.4,0.0098958]
[1644698029622,1.2192,2982.1,2981.3,0.00352526]
[1644698029819,1.2192,2982.1,2981.6,0.00989527]
[1644698030074,1.9749324,2982.1,2981.6,0.00989527]
[1644698030666,1.9749324,2982.1,2981.2,0.00352526]
[1644698030863,1.9749324,2982.1,2981.7,0.00989507]
[1644698031868,1.9749324,2982.1,2981.1,0.00352526]
[1644698032068,1.9749324,2982.1,2981.8,0.00989496]
[1644698033169,1.9749324,2982.1,2981.2,0.00352526]
[1644698033469,1.9749324,2982.1,2981.8,0.00989005]
[1644698034315,1.9749324,2982.1,2981.0,0.00352526]
[1644698034518,1.9749324,2982.1,2981.8,0.00989005]
[1644698034718,1.2192,2982.1,2981.8,0.00989005]
[1644698035517,1.2192,2982.1,2981.2,0.00352526]
[1644698035817,1.2192,2982.1,2981.8,0.00989005]
[1644698036821,1.2192,2982.1,2981.8,0.00989486]
[1644698037021,0.69077914,2981.9,2981.8,0.00989486]
[1644698037862,0.69077914,2981.9,2981.4,0.00352526]
[1644698038065,1.2192,2982.1,2981.7,0.00989507]
[1644698039062,0.68447317,2982.0,2981.4,0.00352526]
[1644698039262,0.68447317,2982.0,2981.8,0.00989496]
[1644698039463,1.2192,2982.1,2981.8,0.00989496]
[1644698040272,1.2192,2982.1,2981.3,0.00352526]
[1644698040470,0.83198198,2982.0,2981.8,0.00989486]
[1644698041520,0.83198198,2982.0,2981.1,0.00352526]
[1644698041720,0.83198198,2982.0,2981.8,0.00989496]
[1644698042724,0.83198198,2982.0,2981.3,0.00152628]
[1644698042922,1.2192,2982.1,2981.8,0.00989496]
[1644698043722,1.2192,2982.1,2981.8,0.00207122]
[1644698043922,1.2192,2982.1,2981.2,0.00357671]
[1644698044121,1.2192,2982.1,2981.3,0.1676]
[1644698044322,0.80965825,2982.0,2981.4,0.00357671]
[1644698044721,0.80965825,2982.0,2981.2,0.17117671]
[1644698044921,0.80965825,2982.0,2981.3,0.00357671]
[1644698045366,0.80965825,2982.0,2980.9,0.00357671]
[1644698046568,0.80965825,2982.0,2981.3,0.00622398]
[1644698047570,0.80965825,2982.0,2980.9,0.00357671]
[1644698047771,0.55965825,2982.0,2981.5,0.0093822]
[1644698048820,0.55965825,2982.0,2980.9,0.00357671]
[1644698049019,0.55965825,2982.0,2981.6,0.00938201]
[1644698049219,1.42695172,2981.9,2981.6,0.00938201]
[1644698049820,1.42695172,2981.9,2980.9,0.17117671]
[1644698050221,1.42695172,2981.9,2981.6,0.00938201]
[1644698051120,1.42695172,2981.9,2980.9,0.17117671]
[1644698051328,1.42695172,2981.9,2981.6,0.00938201]
[1644698051526,1.42695172,2982.0,2981.6,0.00938201]
[1644698051728,1.2192,2982.1,2981.6,0.00938201]
[1644698052126,0.01978784,2982.2,2981.6,0.85208201]
[1644698052326,0.01978784,2982.2,2981.7,3.5]
[1644698052590,0.01978784,2982.2,2981.7,3.50928851]
[1644698053576,0.01978784,2982.2,2981.7,3.5]
[1644698053777,0.01978784,2982.2,2981.7,3.50928863]
[1644698054177,0.01978784,2982.2,2981.7,3.80928863]
[1644698054778,0.01978784,2982.2,2981.7,3.8]
[1644698054979,0.01978784,2982.2,2981.8,0.1676]
[1644698056420,0.01978784,2982.2,2981.9,0.83811]
[1644698056619,0.01978784,2982.2,2982.0,3.20635958]
[1644698058119,0.01978784,2982.2,2981.9,1.32311]
[1644698058323,0.01978784,2982.2,2981.9,0.3]
[1644698058820,0.01978784,2982.2,2981.8,0.7676]
[1644698059021,0.01978784,2982.2,2981.9,3.05177824]
[1644698059221,0.01978784,2982.2,2981.8,0.1676]
[1644698060867,0.01978784,2982.2,2981.7,3.06223596]
[1644698061166,0.01978784,2982.2,2981.8,0.1676]
[1644698062170,0.01978784,2982.2,2981.8,0.1176]
[1644698066312,0.01978784,2982.2,2981.7,0.01317024]
[1644698066715,0.01978784,2982.2,2981.7,3.0183517]
[1644698066916,0.01978784,2982.2,2981.8,0.1676]
[1644698075769,0.01978784,2982.2,2981.8,1.00578]
[1644698075967,0.01978784,2982.2,2981.9,3.11111111]
[1644698077273,0.01978784,2982.2,2981.9,5.38720111]
[1644698077472,0.01978784,2982.2,2982.0,0.485]
[1644698077675,0.01978784,2982.2,2982.1,3.57626413]
[1644698077973,0.01978784,2982.2,2982.1,4.66126413]
[1644698078371,0.01978784,2982.2,2982.1,5.49929413]
[1644698078573,0.01978784,2982.2,2982.1,4.66126413]
[1644698079616,0.01978784,2982.2,2982.1,4.36126413]
[1644698080415,0.01978784,2982.2,2982.1,4.52886413]
[1644698080817,0.01978784,2982.2,2982.1,5.36689413]
[1644698081017,0.01978784,2982.2,2982.1,5.66689413]
[1644698081430,0.01978784,2982.2,2982.1,6.49929413]
[1644698081623,0.1,2982.9,2982.1,6.49929413]
[1644698081624,0.1,2982.9,2982.3,3.2]
[1644698081823,0.1,2982.9,2982.4,2.16079]
[1644698082023,0.1,2982.9,2982.4,2.32839]
[1644698082224,0.1,2982.9,2982.4,2.62839]
[1644698082974,0.1,2982.9,2982.5,0.8379]
[1644698083172,0.1,2982.9,2982.5,1.3229]